bitfinex-derivatives/quotes_ETHF0:USTF0_20250816
["timestamp","ask_amount","ask_price","bid_price","bid_amount"]
[1755314410952,0.1554346,4449.7,4449.5,0.6141]
[1755314411151,0.1554346,4449.6,4449.5,1.1479]
[1755314411342,0.1554346,4449.6,4449.5,0.6141]
[1755314411546,0.3654,4450.4,4449.5,0.6141]
[1755314411747,1.17871753,4450.3,4450.2,0.6141]
[1755314411943,1.17871753,4450.3,4450.2,1.5051]
[1755314412350,0.15561753,4450.3,4450.2,1.5051]
[1755314414353,3.2078,4450.6,4450.5,0.6141]
[1755314414558,3.53078955,4450.6,4450.5,1.5051]
[1755314415150,3.3753,4450.6,4450.5,1.5051]
[1755314415754,3.2078,4450.6,4450.5,1.5051]
[1755314415954,3.8192,4451.3,4450.6,0.5338]
[1755314416158,3.9867,4451.3,4451.2,0.6141]
[1755314416361,4.38622691,4451.3,4451.2,1.5051]
[1755314416559,4.57392691,4451.3,4451.2,1.5051]
[1755314416758,4.85942691,4451.3,4451.2,1.5051]
[1755314417453,4.85942691,4451.3,4451.2,1.2444]
[1755314417652,4.85942691,4451.3,4451.2,0.2907]
[1755314418360,4.85942691,4451.3,4451.2,0.6441]
[1755314418562,4.85942691,4451.3,4451.2,1.5217]
[1755314420159,4.7041,4451.3,4451.2,1.5217]
[1755314422563,4.4186,4451.3,4451.2,1.5217]
[1755314423263,4.6988,4451.3,4451.2,1.5217]
[1755314425065,3.2078,4451.3,4451.2,1.5217]
[1755314425767,1.91897182,4452.0,4451.2,0.6072]
[1755314425966,3.2078,4452.1,4451.9,1.515]
[1755314426168,0.165,4452.3,4452.2,0.1843]
[1755314426361,0.7499807,4452.3,4452.2,1.1454]
[1755314426561,1.0301807,4452.3,4452.2,1.515]
[1755314426965,1.6718807,4452.3,4452.2,1.515]
[1755314427165,1.6718814,4452.3,4452.2,1.515]
[1755314427463,1.5169,4452.3,4452.2,1.515]
[1755314428460,0.4102,4452.3,4452.2,1.515]
[1755314429273,0.6636,4452.3,4452.2,1.515]
[1755314429458,1.0519,4452.3,4452.2,1.515]
[1755314429859,3.2078,4452.7,4452.2,0.6006]
[1755314430174,4.7247,4452.7,4452.6,1.515]
[1755314430967,3.2078,4452.7,4452.6,1.515]
[1755314431766,3.3728,4452.7,4451.8,0.2906]
[1755314431970,0.3498,4451.5,4451.4,0.9706]
[1755314432165,1.5169,4451.5,4451.4,0.6006]
[1755314432373,1.5169,4451.5,4451.4,0.8912]
[1755314432760,1.5169,4451.5,4450.6,3.2078]
[1755314433066,3.2078,4452.1,4451.2,0.6006]
[1755314433067,1.1286,4451.3,4451.2,0.6006]
[1755314433267,0.2802,4452.0,4451.2,0.6006]
[1755314433571,3.43587182,4451.9,4451.8,0.2906]
[1755314433769,0.2802,4451.8,4451.1,3.2078]
[1755314433974,0.595,4451.2,4451.1,3.8084]
[1755314434275,1.5169,4451.2,4451.1,3.8084]
[1755314434573,1.5169,4451.2,4451.1,4.7228]
[1755314435167,0.6417,4451.6,4451.1,3.8084]
[1755314435368,1.0519,4452.2,4452.1,0.6006]
[1755314435667,0.2802,4452.1,4451.6,0.2906]
[1755314436069,0.595,4451.7,4451.6,0.8912]
[1755314436371,1.5169,4451.7,4451.6,0.8912]
[1755314436773,1.5169,4451.7,4451.6,0.6006]
[1755314437472,1.5169,4451.7,4451.6,0.8912]
[1755314438078,1.5169,4451.7,4451.6,0.6006]
[1755314438280,1.5169,4451.7,4451.6,1.515]
[1755314439278,1.5169,4451.7,4451.2,0.2906]
[1755314439475,1.5169,4451.7,4451.1,3.8316]
[1755314439476,0.595,4451.7,4451.1,3.2078]
[1755314439779,1.5169,4451.4,4451.3,1.515]
[1755314440273,0.4102,4451.4,4451.3,1.515]
[1755314440868,0.165,4451.4,4451.3,1.515]
[1755314441272,0.4184,4451.6,4451.5,0.6006]
[1755314441580,1.2367,4451.6,4451.5,1.515]
[1755314442682,1.5169,4451.6,4451.5,1.515]
[1755314443179,0.595,4451.6,4451.1,3.2078]
[1755314443489,1.5169,4451.3,4451.2,1.515]
[1755314444571,1.5169,4451.3,4451.2,0.6006]
[1755314444775,1.5169,4451.3,4451.2,0.8912]
[1755314445176,1.5169,4451.3,4451.2,1.515]
[1755314446681,1.5169,4451.3,4451.2,0.1843]
[1755314446879,3.43587182,4451.3,4451.1,3.2078]
[1755314447079,1.1286,4450.8,4450.7,1.1454]
[1755314447286,1.5169,4450.8,4450.7,1.515]
[1755314447873,1.0519,4450.8,4450.7,1.515]
[1755314448082,1.5169,4450.8,4450.7,1.515]
[1755314449387,1.2367,4450.8,4450.7,1.515]
[1755314449988,1.0519,4450.8,4450.7,1.515]
[1755314450190,3.3722,4451.4,4451.3,1.5479]
[1755314450486,4.38646607,4451.4,4451.3,1.5479]
[1755314451191,4.67306607,4451.4,4451.3,1.5479]
[1755314451488,4.38646607,4451.4,4451.3,1.5479]
[1755314452191,4.86036607,4451.4,4451.3,1.5479]
[1755314459086,3.77956607,4451.4,4451.3,1.5479]
[1755314459388,4.01976607,4451.4,4451.3,1.5479]
[1755314459688,4.38646607,4451.4,4451.3,1.5479]
[1755314459889,4.86036607,4451.4,4451.3,1.5479]
[1755314460686,1.65256607,4451.4,4451.3,1.5479]
[1755314460886,0.15586607,4451.4,4451.3,1.5479]
[1755314468699,3.8147,4451.9,4451.3,1.5479]
[1755314468896,3.8147,4451.9,4451.7,0.6181]
[1755314468897,0.75858339,4451.8,4451.7,0.6181]
[1755314469092,1.04518339,4451.8,4451.7,1.1705]
[1755314469296,1.04519102,4451.8,4451.7,1.5479]
[1755314469488,1.28539102,4451.8,4451.7,1.5479]
[1755314469796,0.57129102,4451.8,4451.7,1.5479]
[1755314470301,0.15539102,4451.8,4451.7,1.5479]
[1755314470788,0.92669102,4451.8,4451.7,1.5479]
[1755314470989,1.17819102,4451.8,4451.7,1.5479]
[1755314471193,1.65209102,4451.8,4451.7,1.5479]
[1755314472298,1.36549102,4451.8,4451.7,1.5479]
[1755314472599,1.17819102,4451.8,4451.7,1.5479]
[1755314472801,1.36549102,4451.8,4451.7,1.5479]
[1755314473098,1.65209102,4451.8,4451.7,1.5479]
[1755314473492,1.36549102,4451.8,4451.7,1.5479]
[1755314473799,0.8898,4452.5,4452.4,0.6181]
[1755314474003,1.65207551,4452.5,4452.4,1.5479]
[1755314474194,0.75857551,4452.5,4452.4,1.5479]
[1755314474493,0.31977551,4452.5,4452.4,1.5479]
[1755314474995,0.15537551,4452.5,4452.4,1.5479]
[1755314475190,4.4179,4453.1,4453.0,0.6181]
[1755314475392,0.1644,4452.5,4452.4,0.2886]
[1755314475597,1.4967,4452.5,4452.4,1.5479]
[1755314476199,1.0228,4452.5,4452.4,1.5479]
[1755314476398,0.6561,4452.5,4452.4,1.5479]
[1755314476599,0.4159,4452.5,4452.4,1.5479]
[1755314477096,0.6561,4452.5,4452.4,1.5479]
[1755314477301,1.0228,4452.5,4452.4,1.5479]
[1755314477704,1.2101,4452.5,4452.4,1.5479]
[1755314478098,1.4967,4452.5,4452.4,1.5479]
[1755314478700,0.6032,4452.5,4452.2,3.5883]
[1755314478899,0.6136,4452.3,4452.2,4.2131]
[1755314479204,1.5187,4452.3,4452.2,4.3231]
[1755314479900,1.5187,4452.3,4452.0,0.3805]
[1755314480108,1.5187,4452.1,4451.7,0.3805]
[1755314480297,0.3856,4452.0,4451.8,0.2721]
[1755314480500,1.5187,4451.9,4451.8,0.6248]
[1755314480700,0.4203,4451.7,4451.6,1.4958]
[1755314480906,1.5187,4451.7,4451.6,1.4958]
[1755314481312,1.5187,4451.7,4451.5,3.2078]
[1755314481601,1.5187,4451.6,4451.5,0.2721]
[1755314482503,1.5187,4451.6,4451.5,0.4371]
[1755314482697,1.5187,4451.6,4451.5,1.4958]
[1755314489029,0.1689,4451.6,4451.5,1.4958]
[1755314489319,1.0683,4451.6,4451.5,1.4958]
[1755314489519,1.5187,4451.6,4451.5,1.4958]
[1755314491422,1.5187,4451.6,4451.1,0.44897]
[1755314491423,0.865,4451.9,4451.8,0.6003]
[1755314491623,1.5187,4451.9,4451.8,1.4958]
[1755314492227,1.67373376,4451.9,4451.8,1.4958]
[1755314492427,1.5187,4451.9,4451.8,1.4958]
[1755314493224,1.6737255,4451.9,4451.8,1.4958]
[1755314493726,1.5187,4451.9,4451.8,1.4958]
[1755314494024,1.67366162,4451.9,4451.8,1.4958]
[1755314494526,1.5187,4451.9,4451.8,1.4958]
[1755314495126,1.67367404,4451.9,4451.8,1.4958]
[1755314495729,1.5187,4451.2,4451.1,1.4958]
[1755314496124,1.0683,4451.2,4451.1,1.4958]
[1755314496523,0.1689,4451.2,4451.1,1.4958]
[1755314496828,0.4203,4451.2,4451.1,1.4958]
[1755314497028,1.5187,4451.2,4451.1,0.4126]
[1755314497222,1.5187,4451.2,4451.1,1.4958]
[1755314499730,1.0683,4451.2,4451.1,1.4958]
[1755314502631,0.4313,4451.2,4451.1,1.4958]
[1755314502933,1.5187,4451.2,4451.1,1.4958]
[1755314508432,1.2506,4451.2,4451.1,1.4958]
[1755314509030,1.5093,4451.2,4451.1,1.4958]
[1755314522048,1.5093,4451.2,4451.1,1.2456]
[1755314522346,1.5093,4451.2,4451.1,1.4954]
[1755314526045,1.0583,4451.2,4451.1,1.4954]
[1755314526448,0.7947,4451.3,4451.2,1.4909]
[1755314526647,0.7947,4451.3,4451.2,23.70077362]
[1755314526848,1.2149,4451.3,4451.2,23.70077362]
[1755314527049,1.4736,4451.3,4451.2,23.70077362]
[1755314530852,0.1677,4451.3,4450.9,3.2078]
[1755314531151,0.5879,4451.2,4451.1,0.8679]
[1755314531360,1.2149,4451.2,4451.1,1.4909]
[1755314531657,1.4736,4451.2,4451.1,1.4909]
[1755314535363,1.0372,4451.2,4451.1,1.4909]
[1755314536054,1.2149,4451.2,4451.1,1.4909]
[1755314536258,1.4736,4451.2,4451.1,1.4909]
[1755314547670,1.4736,4451.2,4451.1,0.1746]
[1755314547876,1.4736,4451.2,4451.1,21.1832]
[1755314548178,1.4736,4451.2,4451.1,22.0527]
[1755314548879,0.56313499,4451.2,4451.1,20.57]
[1755314549079,1.62903499,4451.2,4451.1,22.0476]
[1755314554684,1.62523218,4451.2,4451.1,22.0476]
[1755314554977,1.4761,4451.2,4451.1,22.0476]
[1755314556578,3.2078,4452.0,4451.2,0.6226]
[1755314556779,0.8489,4452.1,4452.0,1.4776]
[1755314557080,1.37470079,4452.1,4452.0,22.0426]
[1755314557770,0.4233,4452.5,4452.4,1.4776]
[1755314558079,0.57234962,4452.5,4452.4,1.4776]
[1755314558280,0.4233,4452.5,4452.4,1.4776]
[1755314559680,1.2256,4452.5,4452.4,1.4776]
[1755314562685,1.0588,4452.5,4452.4,1.4776]
[1755314562886,0.4233,4452.5,4452.4,1.4776]
[1755314564482,3.3769,4453.0,4452.9,0.3427]
[1755314564789,4.84579431,4453.0,4452.9,1.4776]
[1755314566987,1.4892,4453.0,4452.9,3.10547362]
[1755314567790,1.2256,4453.0,4452.9,23.66147362]
[1755314568789,0.1,4453.2,4453.1,0.344]
[1755314568988,0.1,4453.2,4453.1,4.6781]
[1755314569192,0.2681,4453.2,4453.1,4.6781]
[1755314570390,0.5233,4453.2,4453.1,4.6781]
[1755314570590,1.137,4453.2,4453.1,4.6781]
[1755314571693,1.3097,4453.2,4453.1,4.6781]
[1755314571894,1.5699,4453.2,4453.1,4.6781]
[1755314576096,0.1681,4452.9,4452.8,20.547]
[1755314576292,1.4699,4452.9,4452.8,21.5157]
[1755314576504,1.4699,4452.9,4452.8,22.0173]
[1755314576991,1.4699,4452.9,4452.8,20.7174]
[1755314577197,0.6653,4452.9,4452.8,23.64517362]
[1755314577390,0.1681,4452.9,4452.8,23.64517362]
[1755314577591,0.242,4453.1,4452.8,22.77507362]
[1755314577792,1.037,4453.1,4453.0,0.6002]
[1755314578089,1.4699,4453.1,4453.0,1.4703]
[1755314580295,1.4699,4453.1,4453.0,0.8641]
[1755314580502,1.4699,4453.1,4453.0,0.6002]
[1755314580700,1.4699,4453.1,4453.0,0.344]
[1755314581199,1.4699,4453.1,4453.0,1.4703]
[1755314581698,0.4233,4453.1,4453.0,1.4703]
[1755314582493,0.1,4453.2,4453.1,0.5093]
[1755314582699,0.1,4453.2,4453.1,3.09817362]
[1755314582894,0.1,4453.2,4453.1,23.64017362]
[1755314583702,1.5699,4453.2,4453.1,21.1499]
[1755314583904,1.5699,4453.2,4453.1,22.0123]
[1755314584992,1.5699,4453.2,4453.1,21.4061]
[1755314585194,0.696,4453.2,4453.1,20.54]
[1755314585897,1.5699,4453.2,4453.1,20.54]
[1755314587200,0.596,4453.0,4452.9,0.8641]
[1755314587392,1.4699,4453.0,4452.9,0.8641]
[1755314587695,1.4699,4453.0,4452.9,1.1095]
[1755314587897,1.4699,4453.0,4452.9,1.4703]
[1755314588397,1.4699,4453.0,4452.9,1.2249]
[1755314588598,0.1,4453.2,4452.9,1.4703]
[1755314588797,0.8818,4453.2,4453.1,1.4703]
[1755314588996,0.1,4453.2,4453.1,1.4703]
[1755314589198,0.242,4454.2,4453.1,21.4081]
[1755314589398,0.4233,4454.2,4454.1,0.6002]
[1755314589598,1.61419596,4454.2,4454.1,0.6002]
[1755314589793,1.4699,4454.2,4454.1,0.6002]
[1755314590099,1.4699,4454.2,4454.1,1.4703]
[1755314590300,0.8739,4454.9,4454.2,0.8701]
[1755314590606,1.61421571,4454.8,4454.7,0.8641]
[1755314591403,1.61421571,4454.8,4454.7,0.6079]
[1755314591697,1.61421571,4454.8,4454.5,0.6062]
[1755314591901,1.4699,4454.6,4454.5,1.2141]
[1755314592101,1.61421571,4454.6,4454.5,1.4703]
[1755314593301,1.61421571,4454.6,4452.1,0.10107476]
[1755314593302,10.7954706,4454.6,4452.1,0.10107476]
[1755314593600,0.596,4452.3,4452.1,0.10107476]
[1755314593806,1.84138627,4452.2,4452.1,0.10107476]
[1755314595106,1.2279,4451.3,4451.2,32.33]
[1755314595300,0.596,4451.3,4451.2,0.1736]
[1755314595494,0.596,4451.3,4451.2,0.419]
[1755314595802,0.596,4451.3,4451.2,1.1095]
[1755314596003,1.2279,4451.3,4451.2,1.1095]
[1755314597712,1.2279,4451.3,4451.2,1.4703]
[1755314601203,0.8153,4451.3,4451.2,1.4703]
[1755314601407,1.0571,4451.3,4451.2,1.4703]
[1755314601810,1.2325,4451.3,4451.2,1.4703]
[1755314605110,1.2325,4451.3,4451.2,22.0113]
[1755314605308,0.4279,4451.3,4451.2,22.0113]
[1755314605710,0.4279,4451.3,4451.2,1.4703]
[1755314605911,0.4279,4451.3,4451.2,22.0113]
[1755314606510,0.2552,4451.3,4451.2,22.0113]
[1755314607811,5.12907278,4451.5,4451.2,21.1412]
[1755314608011,1.062,4451.4,4451.3,1.1157]
[1755314608717,1.2374,4451.4,4451.3,1.5033]
[1755314612909,3.2078,4452.0,4451.4,1.30154]
[1755314613118,6.12467278,4452.0,4451.9,0.4276]
[1755314613323,1.382,4451.9,4451.8,20.7871]
[1755314614308,1.382,4451.9,4451.8,20.9542]
[1755314614512,1.382,4451.9,4451.8,0.4122]
[1755314616214,5.12907278,4452.0,4451.8,0.8578]
[1755314616419,3.2078,4452.0,4451.9,1.5033]
[1755314616720,0.6292,4452.6,4452.5,1.5033]
[1755314616721,3.2078,4452.6,4452.5,1.5033]
[1755314616919,4.4452,4452.6,4452.5,22.0443]
[1755314617716,4.4452,4452.6,4452.5,1.5033]
[1755314617917,4.4452,4452.6,4452.5,22.0443]
[1755314620312,3.816,4452.6,4452.5,22.0443]
[1755314620516,3.2078,4452.6,4452.5,22.0443]
[1755314621118,3.4707,4452.6,4452.5,22.0443]
[1755314621417,3.6406,4452.6,4452.5,22.0443]
[1755314621611,4.028,4452.6,4452.5,22.0443]
[1755314622423,0.2418,4452.5,4451.9,0.2451]
[1755314622624,6.36647278,4452.0,4451.9,1.5033]
[1755314622923,6.36647278,4452.0,4451.9,22.0413]
[1755314624021,3.46638657,4452.0,4451.9,21.7834]
[1755314624220,3.4707,4452.0,4451.9,22.0413]
[1755314624619,3.816,4452.0,4451.9,22.0413]
[1755314624820,5.99585013,4452.0,4451.7,20.539]
[1755314625020,1.062,4451.9,4451.8,1.5033]
[1755314625215,3.2078,4452.0,4451.8,1.5033]
[1755314625415,3.2078,4452.0,4451.9,1.5033]
[1755314625626,4.4452,4452.0,4451.9,1.0629]
[1755314625821,4.70377873,4452.0,4451.9,1.0629]
[1755314626125,4.70377873,4452.0,4451.9,0.2451]
[1755314626522,4.70377873,4452.0,4451.9,0.5947]
[1755314626721,3.46637873,4452.0,4451.9,0.8578]
[1755314626920,3.46637873,4452.0,4451.9,1.5033]
[1755314627122,3.90467873,4452.0,4451.9,1.5033]
[1755314627322,4.29207873,4452.0,4451.9,1.5033]
[1755314627528,4.70377873,4452.0,4451.9,1.5033]
[1755314628226,4.70378901,4452.0,4451.9,1.5033]
[1755314628421,4.70378901,4452.0,4451.9,0.8578]
[1755314628623,6.62506179,4452.0,4451.9,0.8578]
[1755314628819,6.21336179,4452.0,4451.9,0.4122]
[1755314629025,6.7743688,4452.0,4451.9,0.8593]
[1755314629326,3.61049602,4452.0,4451.9,1.4958]
[1755314629627,3.77719602,4452.0,4451.9,0.8442]
[1755314629828,3.3745,4452.0,4451.9,1.4958]
[1755314630130,4.4212,4452.6,4452.5,1.5075]
[1755314630429,3.61052774,4452.6,4452.5,1.5075]
[1755314630622,3.46641272,4452.6,4452.5,1.5075]
[1755314630824,3.2078,4452.6,4452.5,1.5075]
[1755314632030,0.1,4453.2,4453.0,1.1271]
[1755314632031,3.2078,4453.1,4453.0,1.1271]
[1755314632230,3.2078,4453.1,4453.0,22.0445]
[1755314635635,0.1,4453.2,4453.1,0.44877]
[1755314635936,3.2078,4453.8,4453.7,1.5075]
[1755314636133,3.2078,4453.8,4453.7,22.0425]
[1755314637740,3.2078,4454.4,4453.7,21.141]
[1755314637939,4.4212,4454.4,4454.3,1.5075]
[1755314638438,4.171,4454.4,4454.3,1.5075]
[1755314638831,4.4212,4454.4,4454.3,1.5075]
[1755314640227,4.6595,4454.4,4454.3,1.5075]
[1755314640436,4.6595,4454.4,4454.3,0.8559]
[1755314640640,0.5949,4453.9,4453.8,20.531]
[1755314640830,3.2078,4453.9,4453.8,22.0385]
[1755314641737,3.8304,4453.9,4453.8,22.0385]
[1755314642139,4.171,4453.9,4453.8,22.0385]
[1755314642339,4.4212,4453.9,4453.8,22.0385]
[1755314644339,3.2078,4453.9,4453.8,22.0385]
[1755314646238,3.8304,4453.9,4453.8,22.0385]
[1755314646838,3.4621,4453.9,4453.8,22.0385]
[1755314647041,3.2078,4453.9,4453.8,22.0385]
[1755314647542,3.9971,4453.9,4453.8,22.0385]
[1755314647844,4.2473,4453.9,4453.8,22.0385]
[1755314648036,4.4212,4453.9,4453.8,1.5075]
[1755314648242,4.6595,4453.9,4453.8,21.3839]
[1755314648635,4.6595,4453.9,4453.8,21.6551]
[1755314649038,4.4212,4453.9,4453.8,22.0355]
[1755314649345,4.4212,4453.9,4453.8,22.0345]
[1755314651742,3.8027,4453.9,4453.8,22.0345]
[1755314651934,3.6288,4453.9,4453.8,22.0345]
[1755314652138,3.4621,4453.9,4453.8,22.0345]
[1755314652341,3.8027,4453.9,4453.8,22.0345]
[1755314652641,4.4212,4453.9,4453.8,22.0345]
[1755314652847,4.4212,4453.9,4453.8,22.0335]
[1755314653040,4.4212,4453.9,4453.8,21.6531]
[1755314653342,3.8027,4453.9,4453.8,22.0335]
[1755314653540,3.2078,4453.9,4453.8,22.0335]
[1755314653943,4.4212,4454.5,4454.4,1.5075]
[1755314654137,3.6288,4454.5,4454.4,22.0325]
[1755314654446,3.2078,4454.5,4454.4,22.0325]
[1755314654843,0.6185,4455.0,4454.5,0.3804]
[1755314655043,0.3683,4455.0,4454.9,1.5075]
[1755314655242,0.3683,4455.0,4454.9,22.0325]
[1755314655439,3.2078,4455.2,4455.0,0.6303]
[1755314655644,4.4212,4455.2,4455.1,22.0325]
[1755314656242,1.4517,4455.1,4455.0,20.524]
[1755314656547,1.2134,4455.0,4454.9,22.0315]
[1755314656742,1.4517,4455.0,4454.9,21.3799]
[1755314656941,1.4517,4455.0,4454.9,20.9479]
[1755314657341,0.7893,4455.0,4454.9,21.6511]
[1755314657549,0.421,4455.0,4454.9,22.0315]
[1755314657842,3.2078,4455.2,4455.1,0.606]
[1755314658048,3.2078,4455.2,4455.1,1.5075]
[1755314658550,4.437,4455.2,4455.1,1.5075]
[1755314658743,4.6813,4455.2,4455.1,21.6491]
[1755314659348,3.2078,4455.2,4455.1,22.0346]
[1755314660465,0.875,4455.7,4455.6,1.4941]
[1755314660751,0.6161,4455.7,4455.6,22.0161]
[1755314661347,0.6161,4455.7,4455.6,22.01191894]
[1755314662048,0.2379,4455.7,4455.6,22.01191894]
[1755314662253,3.9878,4455.9,4455.8,0.5954]
[1755314662553,3.9878,4455.9,4455.8,1.4941]
[1755314662755,3.2078,4455.9,4455.8,1.4941]
[1755314663049,3.4457,4455.9,4455.8,1.4941]
[1755314663453,3.8239,4455.9,4455.8,1.4941]
[1755314663652,3.2078,4455.9,4455.8,22.0141]
[1755314664849,4.4058,4455.9,4455.8,1.4941]
[1755314665152,4.4058,4455.9,4455.8,22.0121]
[1755314666854,4.4058,4455.9,4455.8,22.0111]
[1755314667046,4.6501,4455.9,4455.8,22.0111]
[1755314667757,0.2589,4455.8,4455.1,0.8987]
[1755314667961,0.323,4455.2,4455.1,1.2372]
[1755314668160,1.198,4455.2,4455.1,21.1114]
[1755314668652,1.198,4455.2,4455.1,0.5954]
[1755314668856,1.198,4455.2,4455.1,22.0101]
[1755314669258,1.198,4455.2,4455.1,1.4941]
[1755314669457,1.198,4455.2,4455.1,22.0101]
[1755314671160,3.2078,4455.3,4455.1,22.0101]
[1755314671461,3.2078,4455.3,4455.2,1.4941]
[1755314671759,4.4058,4455.3,4455.2,22.0091]
[1755314671956,4.4058,4455.3,4454.8,0.6775]
[1755314671957,0.397,4454.9,4454.8,0.6775]
[1755314672163,1.4423,4454.9,4454.8,0.858]
[1755314672457,1.4423,4454.9,4454.8,21.373]
[1755314673059,0.4018,4454.3,4454.2,1.1086]
[1755314673263,0.4018,4454.3,4454.2,22.0081]
[1755314673465,3.8449,4454.7,4454.6,1.4941]
[1755314673659,4.4058,4454.7,4454.6,22.0081]
[1755314674064,4.4058,4454.7,4454.6,21.6226]
[1755314674365,4.6501,4454.7,4454.6,21.372]
[1755314674755,0.5609,4454.4,4454.3,0.846]
[1755314674954,1.198,4454.4,4454.3,21.7455]
[1755314675354,1.198,4454.4,4454.3,22.0081]
[1755314676662,0.2379,4454.4,4454.3,22.0081]
[1755314677158,3.7687,4454.7,4454.6,1.4941]
[1755314677365,4.1469,4454.7,4454.6,1.4941]
[1755314677558,4.4058,4454.7,4454.6,22.0091]
[1755314678463,3.6096,4454.7,4454.6,22.0091]
[1755314678664,3.2078,4454.7,4454.6,22.0091]
[1755314679664,4.4058,4454.7,4454.6,22.0091]
[1755314680067,4.4058,4454.7,4454.6,1.1086]
[1755314680265,4.0119,4454.7,4454.0,0.2506]
[1755314680462,4.0119,4454.7,4453.6,2.36998278]
[1755314680463,3.2078,4454.7,4454.1,22.0091]
[1755314680668,4.4058,4454.7,4454.6,0.858]
[1755314680873,4.649,4454.7,4454.6,21.373]
[1755314681769,4.649,4454.7,4454.6,21.2045]
[1755314682371,4.4058,4454.7,4454.6,22.0091]
[1755314682771,4.4058,4454.7,4454.6,1.4941]
[1755314682970,6.32707278,4454.7,4454.0,0.8987]
[1755314683169,4.4058,4454.1,4454.0,0.858]
[1755314683370,4.649,4454.1,4454.0,20.7776]
[1755314683566,4.649,4454.1,4454.0,21.373]
[1755314683767,4.649,4454.1,4454.0,22.0091]
[1755314684265,4.649,4454.1,4454.0,21.2045]
[1755314684469,4.649,4454.1,4454.0,20.9476]
[1755314685368,4.649,4454.1,4454.0,21.6236]
[1755314685574,4.4058,4454.1,4454.0,22.0091]
[1755314686972,4.4058,4454.1,4454.0,21.6236]
[1755314687173,4.649,4454.1,4454.0,20.515]
[1755314687363,0.5609,4453.8,4453.7,0.2626]
[1755314687562,1.198,4453.8,4453.7,22.0091]
[1755314691174,1.198,4453.8,4453.0,0.6214]
[1755314691478,4.4315,4453.3,4453.2,1.4516]
[1755314691678,3.2078,4453.3,4453.2,1.4516]
[1755314694178,0.3817,4453.6,4453.2,0.5922]
[1755314694374,0.8049,4453.6,4453.5,0.5922]
[1755314694578,0.8049,4453.6,4453.5,21.9676]
[1755314694880,0.2503,4453.6,4453.5,21.9676]
[1755314696080,4.4315,4453.8,4453.7,1.4516]
[1755314699496,3.4581,4453.8,4453.7,1.4516]
[1755314699696,3.2078,4453.8,4453.7,1.4516]
[1755314700292,4.4315,4453.8,4453.7,1.4516]
[1755314703191,4.6759,4453.8,4453.7,1.1982]
[1755314703396,0.9711,4453.2,4453.1,0.238]
[1755314703592,4.4315,4453.2,4453.1,20.929]
[1755314703799,4.4315,4453.2,4453.1,21.9666]
[1755314703994,3.2078,4453.7,4453.2,0.4914]
[1755314704192,3.2078,4453.7,4453.6,0.5922]
[1755314704387,3.2078,4453.7,4453.6,21.9656]
[1755314708002,4.4315,4453.7,4453.6,21.9656]
[1755314710803,3.2078,4453.7,4453.6,21.9656]
[1755314711100,3.2078,4454.2,4454.0,0.44867]
[1755314711305,3.2078,4454.2,4454.1,21.7112]
[1755314711694,3.2078,4454.2,4454.1,21.9646]
[1755314712606,1.2315,4454.2,4454.1,21.9646]
[1755314712807,1.4841,4454.2,4454.1,21.3586]
[1755314713002,1.4841,4454.2,4454.1,21.9646]
[1755314713802,0.6343,4454.1,4453.2,6.51256035]
[1755314714003,0.5894,4453.3,4453.2,3.40556035]
[1755314714208,1.4841,4453.3,4453.2,21.1042]
[1755314714610,1.4841,4453.3,4453.2,21.9636]
[1755314714809,0.5894,4453.3,4453.2,0.3432]
[1755314715004,0.5894,4453.3,4453.2,21.1086]
[1755314715203,0.5894,4453.3,4453.2,21.7146]
[1755314715403,0.8498,4453.3,4453.2,21.9636]
[1755314715703,1.4841,4453.3,4453.2,21.9636]
[1755314715904,1.4841,4453.3,4452.9,0.368]
[1755314716203,1.4841,4453.0,4452.9,0.5966]
[1755314716410,1.4841,4453.0,4452.9,21.7136]
[1755314716611,1.4841,4453.0,4452.9,21.9626]
[1755314717208,3.2078,4453.2,4453.1,0.3432]
[1755314717511,3.2078,4453.2,4453.1,1.4516]
[1755314722209,3.6312,4453.2,4453.1,1.4516]
[1755314722410,4.0005,4453.2,4453.1,1.4516]
[1755314722811,4.6603,4453.2,4452.8,1.92127278]
[1755314723011,4.6603,4453.2,4453.1,0.8157]
[1755314723217,4.6603,4453.2,4453.1,1.4243]
[1755314723512,3.2078,4453.2,4453.1,1.87308]
[1755314723705,1.2185,4453.7,4453.6,1.186]
[1755314723905,3.2078,4453.9,4453.7,0.2383]
[1755314724115,3.2078,4453.9,4453.8,0.5774]
[1755314724320,3.2078,4453.9,4453.8,1.4243]
[1755314725311,4.005,4453.9,4453.8,1.4243]
[1755314726321,4.4128,4453.9,4453.8,1.4243]
[1755314726618,4.6648,4453.9,4453.8,1.4243]
[1755314727120,4.6648,4453.9,4453.8,21.9333]
[1755314730013,4.8021216,4453.9,4453.8,21.5661]
[1755314730519,4.8021216,4453.9,4453.8,21.3278]
[1755314730715,4.8021216,4453.9,4453.3,0.44876]
[1755314730916,0.5972,4453.5,4453.4,20.8367]
[1755314731209,1.457,4453.5,4453.4,21.6836]
[1755314731420,1.457,4453.5,4453.4,21.9323]
[1755314732120,0.9665,4453.5,4453.4,21.9323]
[1755314732518,0.4279,4453.5,4453.4,21.9323]
[1755314732719,0.2548,4453.5,4453.4,21.9323]
[1755314733115,0.2548,4453.5,4453.4,1.4243]
[1755314733420,1.205,4453.8,4453.7,1.4243]